bitfinex-derivatives/quotes_SOLF0:USTF0_20260108
["timestamp","ask_amount","ask_price","bid_price","bid_amount"]
[1767833509491,87.0251444,136.85,136.78,6.5861]
[1767833509900,87.0251444,136.85,136.78,13.39700415]
[1767833510406,87.0251444,136.85,136.78,6.5861]
[1767833512290,87.0251444,136.85,136.78,13.39700415]
[1767833512496,87.0251444,136.85,136.78,6.5861]
[1767833514103,93.6081444,136.85,136.78,6.5861]
[1767833516401,0.6251444,136.84,136.78,6.5861]
[1767833523800,0.65109393,136.82,136.76,13.39770415]
[1767833524005,0.65109393,136.8,136.73,6.81090415]
[1767833524209,0.65109393,136.8,136.74,6.79306]
[1767833524712,7.23569393,136.82,136.74,6.79306]
[1767833524913,6.5846,136.82,136.76,0.04966483]
[1767833525612,7.23569393,136.82,136.76,0.04966483]
[1767833526212,10.60765004,136.84,136.76,6.63696483]
[1767833526416,96.98765004,136.84,136.76,6.63696483]
[1767833526613,0.65109393,136.83,136.76,6.63696483]
[1767833527616,7.23519393,136.83,136.76,6.63696483]
[1767833530323,7.23519393,136.83,136.76,13.43002483]
[1767833530519,7.23519393,136.83,136.76,6.63696483]
[1767833532215,0.65109393,136.83,136.76,6.84272483]
[1767833532415,7.23429393,136.85,136.76,6.84272483]
[1767833532908,7.23429393,136.85,136.76,6.79306]
[1767833533112,3.37275611,136.88,136.78,6.79306]
[1767833533316,0.65109393,136.88,136.8,6.79306]
[1767833533518,0.65109393,136.87,136.8,13.37836]
[1767833533721,93.61259393,136.89,136.81,6.79306]
[1767833534411,0.65109393,136.89,136.82,6.5842]
[1767833534617,0.65109393,136.89,136.81,6.79306]
[1767833535626,0.65109393,136.89,136.83,6.5838]
[1767833535921,0.65109393,136.89,136.81,6.79306]
[1767833536728,0.65109393,136.89,136.82,6.5843]
[1767833537722,0.65109393,136.9,136.83,6.5838]
[1767833538029,0.65109393,136.9,136.81,6.79306]
[1767833539529,0.65109393,136.9,136.82,6.5843]
[1767833539730,0.65109393,136.9,136.81,6.79306]
[1767833540631,0.65109393,136.9,136.83,6.5838]
[1767833541623,0.65109393,136.89,136.81,6.5845]
[1767833541830,0.65109393,136.89,136.8,6.79306]
[1767833542532,7.23219393,136.89,136.82,6.5844]
[1767833544434,7.23219393,136.89,136.8,6.79306]
[1767833544435,7.23159393,136.91,136.83,6.5839]
[1767833545835,0.65109393,136.91,136.84,6.5833]
[1767833546029,7.23069393,136.92,136.82,6.79306]
[1767833546531,0.65109393,136.88,136.81,6.79306]
[1767833546736,0.65109393,136.88,136.79,111.59530849]
[1767833546737,0.65109393,136.88,136.8,6.79306]
[1767833547237,0.65109393,136.91,136.81,102.4311]
[1767833547445,0.65109393,136.93,136.83,102.4147]
[1767833547633,0.65109393,136.93,136.83,109.20776]
[1767833547937,0.65109393,136.93,136.86,6.5821]
[1767833548829,0.65109393,136.93,136.88,0.05559826]
[1767833549427,2.15432936,136.92,136.88,0.05559826]
[1767833550741,0.65109393,136.93,136.88,0.05559826]
[1767833550929,2.80542329,136.93,136.88,0.05559826]
[1767833555624,0.65109393,136.93,136.88,0.05559826]
[1767833559335,0.65109393,136.93,136.88,6.63689826]
[1767833561551,0.64414916,136.91,136.88,0.05559826]
[1767833561731,0.64414916,136.91,136.83,2.15432936]
[1767833562132,0.64414916,136.91,136.82,8.94738936]
[1767833562435,0.64414916,136.91,136.82,6.79306]
[1767833562642,0.64414916,136.9,136.84,6.583]
[1767833564337,0.64414916,136.89,136.84,6.583]
[1767833564649,0.64414916,136.89,136.82,8.73822936]
[1767833564836,0.69136422,136.88,136.82,6.5839]
[1767833565233,0.69136422,136.88,136.84,0.04898908]
[1767833565637,0.64414916,136.87,136.84,0.04898908]
[1767833565838,0.64414916,136.87,136.81,249.41195956]
[1767833566243,0.64414916,136.86,136.78,8.94738936]
[1767833566549,0.64414916,136.85,136.78,2.15432936]
[1767833567146,0.05391525,136.83,136.78,2.15432936]
[1767833567546,0.05391525,136.83,136.79,6.5854]
[1767833567746,0.05391525,136.83,136.78,2.15432936]
[1767833567946,0.05391525,136.83,136.76,95.28738936]
[1767833568940,0.05391525,136.83,136.78,6.586]
[1767833569245,0.69806441,136.83,136.75,6.79306]
[1767833569442,0.64414916,136.82,136.74,2.15432936]
[1767833570248,0.05201044,136.79,136.74,2.15432936]
[1767833570750,0.05201044,136.79,136.75,6.5873]
[1767833571344,0.05201044,136.79,136.74,8.94738936]
[1767833571549,0.64414916,136.82,136.74,8.94738936]
[1767833572551,0.64414916,136.82,136.77,6.5867]
[1767833580267,0.64414916,136.85,136.76,2.15432936]
[1767833580473,0.64414916,136.85,136.78,2.15432936]
[1767833580970,0.64414916,136.85,136.8,6.5853]
[1767833582270,0.64414916,136.85,136.78,2.15432936]
[1767833582271,2.80718818,136.87,136.81,6.5846]
[1767833582474,86.36,136.88,136.8,2.15432936]
[1767833582772,87.01285882,136.88,136.8,2.15432936]
[1767833583662,87.01285882,136.88,136.82,6.5844]
[1767833584268,87.01285882,136.88,136.83,6.5838]
[1767833586673,0.65285882,136.88,136.83,6.5838]
[1767833589782,0.65285882,136.88,136.8,2.15432936]
[1767833590579,0.65285882,136.88,136.82,6.5844]
[1767833598885,6.5811,136.89,136.82,8.73872936]
[1767833600075,7.23395882,136.89,136.82,8.73872936]
[1767833600485,7.23395882,136.89,136.82,6.5844]
[1767833600692,7.23395882,136.89,136.82,8.73872936]
[1767833601675,87.01285882,136.91,136.82,2.15432936]
[1767833602069,0.65285882,136.9,136.82,2.15432936]
[1767833602283,0.65285882,136.9,136.83,6.5839]
[1767833603173,7.23335882,136.9,136.83,6.5839]
[1767833608286,7.23335882,136.9,136.84,6.5834]
[1767833609077,0.04888721,136.88,136.84,6.5834]
[1767833609278,0.04888721,136.88,136.86,0.04905139]
[1767833612382,0.65658057,136.92,136.86,0.04905139]
[1767833613681,0.65658057,136.92,136.86,6.63145139]
[1767833617787,0.65658057,136.92,136.87,6.582]
[1767833617980,6.5794,136.93,136.87,6.582]
[1767833618188,7.23598057,136.93,136.87,6.582]
[1767833620685,0.65658057,136.93,136.88,6.5814]
[1767833620888,92.9185,136.95,136.86,6.79910957]
[1767833621094,0.65658057,136.94,136.86,6.75005818]
[1767833621288,0.65658057,136.94,136.89,6.5809]
[1767833621683,86.34,136.95,136.86,6.75005818]
[1767833621888,86.34,136.95,136.87,6.75005818]
[1767833622284,86.99658057,136.95,136.87,6.75005818]
[1767833622485,0.65658057,136.95,136.87,6.75005818]
[1767833623698,0.65658057,136.95,136.9,6.5805]
[1767833637704,7.23478057,136.95,136.89,6.581]
[1767833639706,7.23478057,136.95,136.9,6.5805]
[1767833643711,0.56312074,136.93,136.87,6.74771546]
[1767833644002,0.56312074,136.93,136.84,6.74771546]
[1767833645508,0.56228043,136.91,136.84,13.33071546]
[1767833646104,0.56228043,136.91,136.83,6.74771546]
[1767833647611,7.14248043,136.91,136.84,6.5834]
[1767833648206,7.14248043,136.91,136.84,13.33111546]
[1767833651405,0.56228043,136.91,136.84,6.74771546]
[1767833651611,7.14188043,136.93,136.85,6.74771546]
[1767833652310,7.14188043,136.93,136.86,6.74771546]
[1767833652611,7.14188043,136.93,136.87,6.582]
[1767833653009,7.14188043,136.93,136.86,6.74771546]
[1767833653211,7.14188043,136.93,136.85,6.74771546]
[1767833654411,7.14198043,136.92,136.86,6.5824]
[1767833656610,0.56228043,136.91,136.86,6.5824]
[1767833658918,0.56228043,136.91,136.85,6.5829]
[1767833665123,10.50937346,136.93,136.86,6.5821]
[1767833665327,3.92997346,136.93,136.86,6.5821]
[1767833665627,0.56228043,136.92,136.86,6.5821]
[1767833666230,7.14188043,136.92,136.85,6.5829]
[1767833670626,9.29682276,136.92,136.85,6.5829]
[1767833671228,2.15494233,136.92,136.86,6.5821]
[1767833672728,7.06191291,136.93,136.86,6.5821]
[1767833674831,7.06191291,136.93,136.87,6.5819]
[1767833675026,0.48281291,136.93,136.87,6.5819]
[1767833676435,88.47494233,136.94,136.88,6.5815]
[1767833676436,6.5786,136.94,136.88,6.5815]
[1767833676730,6.5786,136.94,136.88,13.32921546]
[1767833677234,0.48281291,136.95,136.88,13.32921546]
[1767833678428,86.32,136.97,136.88,6.74771546]
[1767833678429,86.80281291,136.97,136.88,6.74771546]
[1767833678629,2.15494233,136.98,136.9,6.74771546]
[1767833679134,2.63775524,136.98,136.91,6.74771546]
[1767833679537,7.05991291,136.98,136.91,13.32771546]
[1767833682642,7.05991291,136.98,136.91,6.58]
[1767833693634,0.48281291,136.96,136.91,6.58]
[1767833699049,0.48281291,136.96,136.9,2.15494233]
[1767833699848,0.48281291,136.96,136.9,6.5805]
[1767833701351,7.06051291,136.96,136.9,6.5805]
[1767833701652,0.48281291,136.95,136.9,6.5805]
[1767833703353,0.48281291,136.95,136.88,6.74771546]
[1767833703657,0.48281291,136.95,136.87,8.90265779]
[1767833703658,0.41613632,136.94,136.87,8.90265779]
[1767833704658,6.99473632,136.94,136.88,6.5815]
[1767833707653,6.99423632,136.96,136.89,8.73594233]
[1767833708153,102.2844,137.01,136.89,8.73594233]
[1767833708154,0.41613632,137.01,136.93,2.15494233]
[1767833709553,7.01267371,137.0,136.94,6.5785]
[1767833711246,0.43687371,137.0,136.96,0.04793259]
[1767833711942,7.01277371,137.0,136.93,2.15494233]
[1767833712145,0.43687371,136.99,136.92,8.90772303]
[1767833712360,7.01307371,136.99,136.93,6.5791]
[1767833713254,0.43687371,136.99,136.94,2.15494233]
[1767833713451,0.43687371,137.01,136.94,8.73334233]
[1767833713947,0.43687371,137.01,136.94,6.5784]
[1767833714351,7.01257371,137.01,136.94,8.73334233]
[1767833721864,6.5758,137.0,136.94,6.5784]
[1767833722162,7.01267371,137.0,136.94,6.5784]
[1767833727068,9.16691604,137.02,136.95,6.578]
[1767833727661,0.43687371,137.01,136.95,6.578]
[1767833728867,7.01217371,137.01,136.95,6.578]
[1767833731183,0.43687371,137.0,136.95,6.578]
[1767833731476,7.01277371,137.0,136.94,13.3312807]
[1767833732173,7.01277371,137.0,136.94,6.5785]
[1767833739380,0.04687893,136.98,136.96,0.05122619]
[1767833746584,0.43484737,136.98,136.96,0.05122619]
[1767833746875,0.43484737,136.98,136.91,6.7527807]
[1767833747384,0.38796844,136.97,136.91,6.7527807]
[1767833747585,0.38796844,136.97,136.9,6.7527807]
[1767833747792,0.38796844,136.96,136.9,6.7527807]
[1767833748389,0.04803314,136.94,136.9,6.7527807]
[1767833748593,0.04803314,136.94,136.9,13.3328807]
[1767833748896,0.38796844,136.96,136.9,13.3328807]
[1767833749285,0.38796844,136.96,136.91,6.7527807]
[1767833749795,0.38796844,136.96,136.91,13.3327807]
[1767833752997,0.04711575,136.95,136.91,13.3327807]
[1767833754599,0.04711575,136.95,136.91,6.58]
[1767833757102,0.04711575,136.95,136.91,13.3327807]
[1767833757703,0.04711575,136.95,136.92,0.05119642]
[1767833768217,0.41606912,136.95,136.92,0.05119642]
[1767833768414,0.41606912,136.95,136.88,6.7527807]
[1767833768621,0.36895337,136.94,136.88,6.7527807]
[1767833769623,0.36895337,136.94,136.89,6.5809]
[1767833771823,92.90521575,136.95,136.86,6.7527807]
[1767833771824,0.36895337,136.93,136.86,6.7527807]
[1767833772120,0.36895337,136.93,136.89,6.581]
[1767833772420,86.64895337,136.95,136.89,6.581]
[1767833772617,0.05162812,136.92,136.89,6.581]
[1767833774826,0.05162812,136.92,136.9,6.5804]
[1767833775819,0.05162812,136.92,136.88,13.3338807]
[1767833776025,0.05162812,136.92,136.88,6.5811]
[1767833776230,0.05162812,136.92,136.87,6.7527807]
[1767833776520,0.05162812,136.92,136.87,13.3346807]
[1767833776926,0.42058149,136.92,136.87,13.3346807]
[1767833778232,0.42058149,136.92,136.87,6.5819]
[1767833781229,0.36895337,136.91,136.8,8.9950135]
[1767833781430,0.36895337,136.9,136.8,8.9950135]
[1767833781631,0.36895337,136.9,136.81,102.4302]
[1767833781933,0.36895337,136.9,136.81,111.4252135]
[1767833782629,0.36895337,136.9,136.84,6.5833]
[1767833783733,6.94955337,136.9,136.84,6.5833]
[1767833783934,0.36895337,136.89,136.82,6.584]
[1767833784234,0.36895337,136.89,136.8,114.79252875]
[1767833784530,86.66895337,136.91,136.84,6.5834]
[1767833785225,0.36895337,136.9,136.84,6.5834]
[1767833786441,0.36895337,136.9,136.82,6.584]
[1767833786820,6.94955337,136.9,136.82,6.584]
[1767833790135,0.36895337,136.89,136.82,6.584]
[1767833791842,93.24905337,136.91,136.82,3.36201525]
[1767833792335,86.3,136.91,136.84,3.36201525]
[1767833792527,86.3,136.91,136.85,2.1543223]
[1767833792729,0.34191775,136.93,136.85,2.1543223]
[1767833794144,0.34191775,136.91,136.84,6.5829]
[1767833794934,2.49624005,136.9,136.84,6.5829]
[1767833795245,6.5811,136.89,136.83,6.5839]
[1767833799446,0.34191775,136.93,136.83,2.1543223]
[1767833799641,0.34191775,136.93,136.85,2.1543223]
[1767833800529,6.92141775,136.93,136.86,6.5824]
[1767833801443,0.34191775,136.93,136.87,2.1543223]
[1767833801742,6.5786,136.94,136.87,2.1543223]
[1767833802640,6.5786,136.94,136.88,6.5814]
[1767833810355,0.34191775,136.94,136.88,6.5814]
[1767833815461,0.34191775,136.94,136.89,6.581]
[1767833821756,0.34191775,136.93,136.88,6.5815]
[1767833821959,0.34191775,136.93,136.84,11.1493358]
[1767833822159,0.34191775,136.93,136.84,2.1543223]
[1767833823760,6.91280129,136.92,136.86,6.5825]
[1767833823957,9.06712359,136.92,136.86,6.5825]
[1767833824149,0.33320129,136.91,136.86,6.5825]
[1767833827760,6.91330129,136.91,136.85,6.5829]
[1767833828857,0.33320129,136.88,136.81,8.9950135]
[1767833829060,2.48752359,136.88,136.79,104.5991223]
[1767833830165,2.1543223,136.88,136.83,6.5839]
[1767833830366,88.80752359,136.9,136.81,2.1543223]
[1767833830873,86.32,136.9,136.85,6.5828]
[1767833832667,2.48752359,136.91,136.85,6.5828]
[1767833835972,9.06762359,136.91,136.85,6.5828]
[1767833838079,9.06762359,136.91,136.84,6.5834]
[1767833838470,2.1543223,136.89,136.84,6.5834]
[1767833841368,2.1543223,136.89,136.82,6.76165374]
[1767833841369,0.33320129,136.9,136.85,6.5829]
[1767833842972,6.5802,136.91,136.85,6.5829]
[1767833844373,6.91340129,136.91,136.85,6.5829]
[1767833844579,2.1543223,136.9,136.85,6.5829]
[1767833848493,6.91340129,136.91,136.85,6.5829]
[1767833862193,6.91340129,136.91,136.85,13.34729669]
[1767833862599,0.33234137,136.9,136.85,6.5829]
[1767833866003,0.33234137,136.9,136.85,13.34729669]
[1767833867694,6.91304137,136.9,136.85,6.76439669]
[1767833868008,6.91304137,136.9,136.84,6.76439669]
[1767833868608,6.91304137,136.9,136.84,13.34769669]
[1767833874205,6.91304137,136.9,136.85,6.76439669]
[1767833874405,0.33234137,136.89,136.84,13.34769669]
[1767833874801,0.33234137,136.89,136.84,13.36121748]
[1767833879009,6.5807,136.9,136.84,13.36121748]
[1767833879212,6.5807,136.9,136.85,6.77791748]
[1767833881012,6.91244137,136.91,136.85,13.36071748]
[1767833881209,0.33234137,136.91,136.85,6.77791748]
[1767833881412,86.32,136.92,136.86,6.77791748]
[1767833882212,86.32,136.92,136.87,6.77791748]
[1767833882514,0.31491699,136.95,136.87,6.77791748]
[1767833882905,0.31491699,136.95,136.88,6.77791748]
[1767833883819,0.31491699,136.94,136.88,13.35941748]
[1767833885016,0.31491699,136.93,136.88,6.77791748]
[1767833885214,0.31491699,136.93,136.87,6.77791748]
[1767833885911,6.89361699,136.94,136.88,6.5815]
[1767833888319,0.31491699,136.94,136.89,6.5809]
[1767833888623,0.31491699,136.95,136.89,6.5809]
[1767833888830,0.31491699,136.95,136.88,6.77791748]
[1767833889032,0.31491699,136.91,136.85,13.36041748]
[1767833889922,0.31491699,136.93,136.86,13.36011748]
[1767833892920,0.31491699,136.92,136.86,13.36011748]
[1767833894726,0.31491699,136.92,136.86,6.77791748]
[1767833894727,0.31491699,136.91,136.86,6.77791748]
[1767833895728,0.31491699,136.91,136.85,13.36081748]
[1767833901342,0.31491699,136.91,136.86,13.36021748]
[1767833906841,0.31491699,136.91,136.86,6.5823]
[1767833907032,6.89501699,136.91,136.85,13.36081748]
[1767833908028,6.89501699,136.91,136.85,6.5829]
[1767833910735,0.31491699,136.9,136.85,6.5829]
[1767833916143,0.31181108,136.88,136.83,6.77791748]
[1767833916344,0.31181108,136.88,136.82,6.77791748]
[1767833916643,0.31181108,136.88,136.83,6.77791748]
[1767833918539,6.5812,136.89,136.83,6.77791748]
[1767833920348,6.89301108,136.89,136.83,6.77791748]
[1767833923349,6.89301108,136.89,136.82,15.51746542]
[1767833923653,6.89301108,136.89,136.82,13.36231748]
[1767833930858,0.31181108,136.88,136.82,13.36231748]
[1767833935174,6.89461108,136.86,136.81,6.77791748]
[1767833935457,0.31181108,136.86,136.79,6.77791748]
[1767833936360,0.31181108,136.86,136.78,6.77791748]
[1767833936562,6.89451108,136.86,136.78,13.36381748]
[1767833936860,9.04965902,136.86,136.78,13.36381748]
[1767833937161,6.89481108,136.85,136.78,13.36381748]
[1767833941866,0.31181108,136.84,136.78,13.36381748]
[1767833942066,6.89521108,136.84,136.78,6.77791748]
[1767833943265,6.89521108,136.84,136.78,13.36421748]
[1767833943960,6.5828,136.86,136.78,13.36421748]
[1767833944157,0.3386295,136.86,136.79,2.15514794]
[1767833944755,0.3386295,136.86,136.79,8.74084794]
[1767833946568,6.9211295,136.86,136.79,8.74084794]
[1767833950370,6.9211295,136.86,136.79,6.5857]
[1767833950571,6.9211295,136.86,136.79,8.74084794]
[1767833959678,6.583,136.85,136.79,8.74084794]
[1767833961074,6.583,136.85,136.79,6.5857]
[1767833961783,6.9212295,136.86,136.8,6.5853]
[1767833963884,6.9212295,136.86,136.79,6.5858]
[1767833965984,6.583,136.85,136.79,6.5858]
[1767833966579,6.9220295,136.84,136.78,13.36381748]
[1767833966785,0.3386295,136.84,136.77,6.77791748]
[1767833966977,2.49377744,136.83,136.75,253.70657322]
[1767833967482,6.5844,136.82,136.75,253.70657322]
[1767833967682,6.9230295,136.82,136.75,253.70657322]
[1767833968071,6.9230295,136.82,136.75,246.92865574]
[1767833968271,6.9230295,136.82,136.75,253.70657322]
[1767833968584,6.9230295,136.82,136.75,260.29427322]
[1767833969180,6.9230295,136.82,136.75,253.51635574]
[1767833969485,0.3386295,136.82,136.76,6.587]
[1767833971288,9.07727744,136.84,136.77,6.5868]
[1767833971586,6.9221295,136.84,136.77,6.5868]
[1767833972287,6.9221295,136.84,136.78,6.5862]
[1767833972479,6.5835,136.84,136.78,6.5862]
[1767833973080,6.5835,136.84,136.78,8.74134794]
[1767833974490,6.5835,136.84,136.78,6.5862]
[1767833974686,0.33093701,136.85,136.76,3.3697954]
[1767833974687,0.33093701,136.85,136.79,6.5857]
[1767833974982,6.5827,136.86,136.79,6.5857]
[1767833976186,6.91363701,136.86,136.79,6.5857]
[1767833977593,6.91363701,136.86,136.8,6.5853]
[1767833980690,0.33093701,136.85,136.8,6.5853]
[1767833981987,0.33093701,136.85,136.81,6.5848]
[1767833982293,6.91293701,136.87,136.81,6.5848]
[1767833983593,0.33093701,136.86,136.81,6.5848]
[1767833985595,6.582,136.87,136.81,6.5848]
[1767833986093,6.91293701,136.87,136.81,6.5848]
[1767833988099,0.33093701,136.86,136.81,6.5848]
[1767833999499,86.36,136.88,136.82,6.5843]
[1767833999801,86.36,136.88,136.82,13.36792121]
[1767834000198,92.9415,136.88,136.82,13.36792121]
[1767834000503,86.36,136.88,136.83,6.5838]
[1767834000901,0.33093701,136.91,136.82,6.78362121]
[1767834001109,0.33093701,136.91,136.84,13.36702121]
[1767834002600,0.33093701,136.91,136.84,6.5834]
[1767834003607,6.5806,136.9,136.84,6.5834]
[1767834004199,6.88845213,136.89,136.83,6.78362121]
[1767834004408,6.88845213,136.89,136.82,13.36762121]
[1767834005108,3.36853476,136.9,136.81,13.36842121]
[1767834005109,6.88885213,136.88,136.81,13.36842121]
[1767834007006,6.88885213,136.88,136.81,6.5848]
[1767834008001,0.30725213,136.88,136.82,6.5841]
[1767834009197,6.581,136.89,136.82,6.5841]
[1767834010201,6.88825213,136.89,136.82,6.5841]
[1767834014605,6.5806,136.9,136.81,6.78362121]
[1767834014907,6.5806,136.9,136.83,6.78362121]
[1767834015606,6.5806,136.9,136.84,6.5834]
[1767834017600,6.88785213,136.9,136.84,6.5834]
[1767834019010,6.88785213,136.9,136.84,13.36702121]
[1767834019908,6.88785213,136.9,136.84,6.5834]
[1767834023515,6.88785213,136.9,136.84,13.36702121]
[1767834033723,0.30725213,136.9,136.85,6.5829]
[1767834033922,86.36,136.92,136.85,6.5829]
[1767834033923,86.66889138,136.92,136.85,6.5829]
[1767834034518,6.5801,136.91,136.85,6.5829]
[1767834034918,6.88899138,136.91,136.85,6.5829]
[1767834036831,0.30889138,136.91,136.86,6.5824]
[1767834037824,92.9396,136.92,136.86,6.5824]
[1767834038023,93.24849138,136.92,136.86,6.5824]
[1767834041027,86.66889138,136.92,136.87,6.5818]
[1767834042428,86.66889138,136.92,136.88,6.5814]
[1767834043525,0.30889138,136.91,136.86,6.78362121]
[1767834043720,0.30889138,136.91,136.85,6.78362121]
[1767834044122,0.30889138,136.91,136.86,6.78362121]
[1767834044526,0.30889138,136.91,136.86,13.36602121]
[1767834045126,6.88909138,136.91,136.86,6.78362121]
[1767834045331,0.30889138,136.9,136.84,6.78362121]
[1767834046227,0.30889138,136.9,136.85,6.5829]
[1767834054338,0.30889138,136.9,136.85,13.36652121]
[1767834061540,45.6453288,137.16,136.87,6.78362121]
[1767834061541,0.30889138,136.96,136.87,6.78362121]
[1767834061760,2.46343893,136.95,136.88,6.78362121]
[1767834062639,6.5787,136.94,136.88,13.36502121]
[1767834065338,6.5787,136.94,136.88,6.5814]
[1767834065538,6.5787,136.94,136.88,13.36502121]
[1767834066048,6.5787,136.94,136.88,6.5814]
[1767834066243,6.5787,136.94,136.88,13.36502121]
[1767834066443,6.5787,136.94,136.88,6.5814]
[1767834066644,6.88315279,136.94,136.88,6.5814]
[1767834073050,6.88315279,136.94,136.88,13.36502121]
[1767834074547,0.30445279,136.94,136.89,6.581]
[1767834074948,0.30445279,136.94,136.89,13.36462121]
[1767834075343,0.30445279,136.94,136.89,6.581]
[1767834076254,0.30445279,136.94,136.89,13.36462121]
[1767834077554,95.37710034,136.96,136.89,13.36462121]
[1767834077742,93.22255279,136.96,136.89,13.36462121]
[1767834077939,95.37710034,136.96,136.89,13.36462121]
[1767834078252,0.30445279,136.95,136.89,13.36462121]
[1767834078751,92.9181,136.96,136.9,13.36402121]
[1767834079849,6.5781,136.96,136.9,13.36402121]
[1767834081250,6.5781,136.96,136.91,6.58]
[1767834081651,9.03620034,136.97,136.91,6.58]
[1767834082056,2.45900034,136.97,136.92,6.5795]
[1767834083154,2.15454755,136.97,136.92,6.5795]
[1767834084360,9.03570034,136.98,136.92,6.5795]
[1767834085057,0.30445279,136.98,136.93,6.5791]
[1767834087160,0.30445279,136.98,136.94,6.5785]
[1767834088759,6.5753,137.01,136.91,8.93816876]
[1767834088956,6.87975279,137.01,136.93,2.15454755]
[1767834089146,6.87975279,137.01,136.92,6.78362121]
[1767834089456,0.05062214,136.97,136.92,6.78362121]
[1767834090059,0.05062214,136.97,136.91,111.29236876]
[1767834090559,0.05062214,136.97,136.94,6.5786]
[1767834092665,6.87975279,137.01,136.94,6.5786]
[1767834092868,6.87975279,137.01,136.95,6.5781]
[1767834093658,0.3056545,137.0,136.95,6.5781]
[1767834093960,2.46020205,137.0,136.91,111.29236876]
[1767834094258,0.3056545,136.99,136.91,111.29236876]
[1767834095562,0.3056545,136.99,136.94,6.5786]
[1767834097760,0.3056545,136.97,136.9,6.78362121]
[1767834097962,0.3056545,136.97,136.87,6.78362121]
[1767834098169,0.3056545,136.97,136.86,96.4466084]
[1767834098471,6.8838545,136.95,136.88,6.5815]
[1767834098970,0.3056545,136.94,136.88,6.5815]
[1767834105670,6.5782,136.95,136.88,6.5815]
[1767834106671,6.8838545,136.95,136.88,6.5815]
[1767834109578,6.8838545,136.95,136.87,13.33952183]
[1767834109579,0.3056545,136.93,136.87,13.33952183]
[1767834111881,3.36298719,136.95,136.85,95.33029578]
[1767834111882,0.3056545,136.92,136.86,6.75772183]
[1767834112476,0.3056545,136.92,136.85,6.5825]
[1767834112677,0.3056545,136.91,136.85,6.5825]
[1767834114975,6.8857545,136.91,136.84,6.75772183]
[1767834116279,6.8857545,136.91,136.83,93.07772183]
[1767834116779,6.8857545,136.91,136.84,6.5834]
[1767834117980,6.8857545,136.91,136.85,6.5829]
[1767834134588,0.31354539,136.9,136.85,6.5829]
[1767834135686,6.5801,136.91,136.85,6.5829]
[1767834136583,6.89364539,136.91,136.85,6.5829]
[1767834141390,6.89364539,136.91,136.85,13.34062183]
[1767834148507,6.89364539,136.91,136.86,6.75772183]
[1767834151518,0.31354539,136.96,136.88,6.75772183]
[1767834151716,0.31354539,136.96,136.89,6.75772183]
[1767834152617,6.91120396,136.95,136.89,13.33872183]
[1767834154515,0.04936925,136.93,136.89,13.33872183]
[1767834154918,0.04936925,136.93,136.91,0.05097553]
[1767834158623,0.33300396,136.96,136.91,0.05097553]
[1767834160124,0.33300396,136.95,136.91,0.05097553]
[1767834160421,0.3792776,136.95,136.91,0.05097553]
[1767834160623,0.33300396,136.94,136.88,6.75772183]
[1767834161325,0.33300396,136.94,136.88,6.5815]
[1767834162018,6.91160396,136.94,136.88,6.5815]
[1767834162319,0.33300396,136.93,136.85,2.15329341]
[1767834162626,6.91310396,136.91,136.84,223.51822339]
[1767834162814,0.33300396,136.9,136.84,223.51822339]
[1767834163520,0.33300396,136.9,136.84,230.10132339]
[1767834164926,0.04689905,136.88,136.84,230.10132339]
[1767834168227,0.04689905,136.88,136.85,0.05572864]
[1767834169427,0.04689905,136.88,136.82,8.73729341]
[1767834169628,0.37990301,136.88,136.8,218.5399976]
[1767834169923,0.33300396,136.87,136.8,218.5399976]
[1767834170118,0.33300396,136.87,136.81,2.15329341]
[1767834170530,6.91510396,136.87,136.81,2.15329341]
[1767834170731,0.05236371,136.85,136.81,2.15329341]
[1767834172228,0.05236371,136.85,136.79,86.36]
[1767834172434,0.38536767,136.85,136.78,2.15329341]
[1767834172822,0.38536767,136.85,136.81,0.05380469]
[1767834176331,0.33300396,136.83,136.77,6.7735105]
[1767834176636,0.33300396,136.83,136.75,2.15329341]
[1767834176824,0.33300396,136.82,136.75,2.15329341]
[1767834177026,0.33300396,136.81,136.75,2.15329341]
[1767834177431,6.91790396,136.81,136.75,2.15329341]
[1767834177835,0.04672325,136.79,136.75,2.15329341]
[1767834178334,0.04672325,136.79,136.74,6.5882]
[1767834178542,0.04672325,136.79,136.73,2.15329341]
[1767834179634,0.04672325,136.79,136.73,8.74199341]
[1767834180642,0.37972721,136.79,136.73,8.74199341]
[1767834180844,0.37972721,136.79,136.73,6.5887]
[1767834181545,6.96562721,136.79,136.72,2.15329341]
[1767834181745,6.96562721,136.79,136.71,86.38]
[1767834181936,6.96562721,136.79,136.72,2.15329341]
[1767834182538,6.96562721,136.79,136.72,8.74249341]
[1767834183351,0.32713194,136.78,136.72,8.74249341]